bitfinex/quotes_SOLUSD_20260124
["timestamp","ask_amount","ask_price","bid_price","bid_amount"]
[1769297421485,2.88859819,127.43,127.4,4.8484776]
[1769297422377,2.88859819,127.43,127.4,2.10965315]
[1769297422679,2.88859819,127.43,127.41,2.73882445]
[1769297424281,2.88859819,127.43,127.4,2.10965315]
[1769297424467,2.88859819,127.43,127.4,4.8484776]
[1769297426486,2.88859819,127.43,127.4,2.73882445]
[1769297429087,2.88859819,127.42,127.39,2.73882445]
[1769297429266,2.88859819,127.41,127.38,2.73882445]
[1769297433896,2.88859819,127.41,127.37,2.83881224]
[1769297434065,2.87029617,127.39,127.37,2.83881224]
[1769297440901,2.87029617,127.39,127.36,42.22550258]
[1769297442391,2.87029617,127.39,127.37,2.83881224]
[1769297442799,2.87029617,127.39,127.36,39.38669034]
[1769297442992,2.87029617,127.39,127.35,5.14846539]
[1769297443296,2.87029617,127.39,127.36,2.83881224]
[1769297460607,2.87029617,127.37,127.35,0.2]
[1769297462112,2.87029617,127.37,127.35,3.03881224]
[1769297462408,2.87029617,127.38,127.35,3.03881224]
[1769297475919,2.67936762,127.39,127.37,2.79377093]
[1769297476112,2.67936762,127.39,127.36,4.90559176]
[1769297479496,4.79118845,127.39,127.36,2.79377093]
[1769297487724,4.79118845,127.41,127.36,2.79377093]
[1769297488033,4.79118845,127.41,127.37,2.79377093]
[1769297488416,2.67936762,127.4,127.37,2.79377093]
[1769297488732,2.67936762,127.4,127.37,4.90559176]
[1769297493442,2.67936762,127.4,127.37,2.79377093]
[1769297497743,2.67936762,127.4,127.37,4.90559176]
[1769297501844,2.67936762,127.4,127.37,2.79377093]
[1769297509954,4.79118845,127.4,127.37,2.79377093]
[1769297512151,2.79073519,127.38,127.36,2.71192963]
[1769297512635,4.90255602,127.39,127.36,2.71192963]
[1769297524755,2.79073519,127.39,127.36,2.71192963]
[1769297543959,2.79073519,127.39,127.35,2.92034964]
[1769297576624,2.6086809,127.4,127.36,2.71509572]
[1769297577123,2.6086809,127.4,127.36,2.11131285]
[1769297577499,2.6086809,127.4,127.36,4.82640857]
[1769297580324,2.6086809,127.4,127.37,2.71509572]
[1769297584033,2.6086809,127.4,127.36,4.82412255]
[1769297586633,2.6086809,127.4,127.36,2.7128097]
[1769297589736,2.6086809,127.4,127.37,2.11131285]
[1769297590940,2.6086809,127.4,127.37,2.11076022]
[1769297594152,2.6086809,127.4,127.38,2.73030135]
[1769297594350,2.72470912,127.41,127.39,2.73030135]
[1769297594634,2.72470912,127.41,127.39,4.84106157]
[1769297596748,2.72470912,127.43,127.4,2.73030135]
[1769297597742,2.72470912,127.43,127.39,4.84106157]
[1769297600148,2.72470912,127.43,127.4,2.73030135]
[1769297600450,2.72470912,127.43,127.4,4.84106157]
[1769297608047,2.72470912,127.43,127.4,2.73030135]
[1769297610551,4.83546934,127.43,127.4,2.73030135]
[1769297615956,2.64678856,127.42,127.4,2.73030135]
[1769297616162,2.64678856,127.42,127.38,2.53567361]
[1769297619164,4.75754878,127.42,127.38,2.53567361]
[1769297623368,2.64678856,127.42,127.38,2.53567361]
[1769297626480,2.64678856,127.42,127.38,2.11076022]
[1769297626656,2.64678856,127.42,127.39,2.53567361]
[1769297629481,2.64678856,127.42,127.39,4.64643383]
[1769297640768,2.64678856,127.42,127.37,2.11076022]
[1769297640975,2.64678856,127.4,127.35,10.58780711]
[1769297641290,2.64678856,127.4,127.36,2.53567361]
[1769297641467,2.64678856,127.4,127.36,4.64643383]
[1769297653010,2.64678856,127.4,127.36,4.64671536]
[1769297655703,2.64678856,127.4,127.35,12.67550396]
[1769297655894,2.64678856,127.4,127.36,2.51232871]
[1769297656915,2.64678856,127.4,127.36,4.62337046]
[1769297657115,2.6162924,127.39,127.35,2.71232871]
[1769297657322,2.6162924,127.39,127.35,4.82337046]
[1769297657695,2.11104175,127.39,127.35,2.71232871]
[1769297657918,2.6162924,127.38,127.35,0.2]
[1769297668209,2.6162924,127.38,127.35,2.71232871]
[1769297702367,2.59264339,127.37,127.35,0.2]
[1769297703883,2.75713368,127.38,127.35,2.85501861]
[1769297722698,2.75713368,127.38,127.35,0.2]
[1769297723300,2.54258618,127.37,127.35,0.2]
[1769297724094,2.54258618,127.37,127.35,2.91409257]
[1769297725091,2.54258618,127.37,127.35,0.2]
[1769297730093,2.54258618,127.36,127.34,0.2]
[1769297730391,2.54258618,127.34,127.33,0.2]
[1769297730596,2.11171575,127.35,127.33,0.2]
[1769297731275,2.11171575,127.36,127.33,0.2]
[1769297732602,2.68731751,127.35,127.33,0.2]
[1769297752021,2.68731751,127.35,127.33,2.94733954]
[1769297759819,2.68731751,127.35,127.33,0.2]
[1769297769134,2.68731751,127.35,127.33,2.67174201]
[1769297773410,4.52411651,127.36,127.33,2.67174201]
[1769297774338,2.41240076,127.36,127.33,2.67174201]
[1769297780841,4.5249194,127.36,127.33,2.67174201]
[1769297787142,2.41240076,127.36,127.33,2.67174201]
[1769297791459,4.5249194,127.36,127.33,2.67174201]
[1769297794955,4.41514061,127.37,127.33,2.67174201]
[1769297795152,4.41514061,127.37,127.34,2.28317995]
[1769297804562,2.30262197,127.38,127.34,2.28317995]
[1769297804863,2.30262197,127.38,127.35,2.28317995]
[1769297808744,2.30262197,127.39,127.36,2.28317995]
[1769297808948,4.41514061,127.39,127.36,2.28317995]
[1769297836895,4.41428974,127.39,127.36,2.28317995]
[1769297855910,12.26423214,127.39,127.36,2.28317995]
[1769297856392,12.26423214,127.39,127.36,2.01117626]
[1769297856589,2.32724815,127.37,127.33,0.2]
[1769297856909,2.11166777,127.36,127.33,0.2]
[1769297857409,4.43891592,127.37,127.33,0.2]
[1769297858404,4.43891592,127.37,127.34,2.32803549]
[1769297858608,2.11166777,127.36,127.34,2.32803549]
[1769297861109,4.43891592,127.37,127.34,2.32803549]
[1769297861894,7.58048277,127.37,127.34,2.32803549]
[1769297867716,5.468815,127.37,127.34,2.32803549]
[1769297869622,2.32724815,127.37,127.34,2.32803549]
[1769297869825,12.28913792,127.39,127.34,2.32803549]
[1769297870121,3.14156685,127.38,127.34,2.32803549]
[1769297870717,13.31939045,127.38,127.34,2.32803549]
[1769297872329,10.1778236,127.38,127.34,2.32803549]
[1769297872629,8.05418103,127.37,127.34,2.32803549]
[1769297876728,8.05418103,127.37,127.35,2.32803549]
[1769297880131,12.28949137,127.38,127.35,2.32803549]
[1769297880533,15.43105822,127.38,127.35,2.32803549]
[1769297884730,3.14156685,127.38,127.35,2.32803549]
[1769297885424,5.46292169,127.38,127.35,2.32803549]
[1769297889434,5.46292169,127.38,127.35,4.43970326]
[1769297892342,5.46292169,127.38,127.35,2.32803549]
[1769297892842,5.46292169,127.38,127.35,4.43970326]
[1769297893042,5.46292169,127.38,127.36,2.26489225]
[1769297893749,10.07505705,127.4,127.37,2.26489225]
[1769297894143,35.74477578,127.4,127.37,2.26489225]
[1769297894322,12.18672482,127.4,127.37,2.26489225]
[1769297894524,17.92788423,127.4,127.37,2.26489225]
[1769297899345,16.92788423,127.4,127.37,2.26489225]
[1769297911665,4.3362851,127.39,127.34,2.26489225]
[1769297911956,4.3362851,127.39,127.35,2.26489225]
[1769297912167,23.95875023,127.39,127.35,2.26489225]
[1769297912862,2.14602138,127.38,127.35,2.26489225]
[1769297916376,5.28758823,127.38,127.35,2.26489225]
[1769297925000,2.14602138,127.37,127.34,2.06185111]
[1769297926500,2.14602138,127.36,127.33,2.26185111]
[1769297926798,21.76848651,127.36,127.33,2.26185111]
[1769297931108,19.62246513,127.36,127.33,2.26185111]
[1769297934399,21.76848651,127.36,127.33,2.26185111]
[1769297941115,2.11106688,127.35,127.33,2.26185111]
[1769297942895,2.11106688,127.34,127.32,2.32516043]
[1769297943218,2.16754785,127.35,127.32,2.32516043]
[1769297943219,4.27861473,127.35,127.32,2.32516043]
[1769297943718,12.33377455,127.35,127.32,2.32516043]
[1769297945920,2.11106688,127.34,127.32,2.32516043]
[1769297946822,4.27861473,127.34,127.32,2.32516043]
[1769297947397,7.42092196,127.34,127.32,0.2]
[1769297947598,7.42092196,127.34,127.31,2.32516043]
[1769297955524,5.25337411,127.34,127.31,2.32516043]
[1769297960934,5.25555995,127.34,127.31,2.32516043]
[1769297963949,7.2910083,127.34,127.31,2.32516043]
[1769297964447,4.14870107,127.33,127.31,0.2]
[1769297965133,4.14870107,127.33,127.31,2.3379909]
[1769297966916,2.11325272,127.33,127.31,2.3379909]
[1769297968640,7.2910083,127.34,127.31,2.3379909]
[1769297980847,2.11325272,127.33,127.31,2.3379909]
[1769297981452,7.2910083,127.34,127.31,2.3379909]
[1769297981948,4.14870107,127.34,127.31,2.3379909]
[1769297983954,2.11325272,127.33,127.31,2.3379909]
[1769297986975,4.14870107,127.34,127.31,2.3379909]
[1769297998490,4.32519543,127.33,127.31,2.39697646]
[1769297998692,2.11325272,127.33,127.31,2.39697646]
[1769298008506,4.32519543,127.34,127.31,2.39697646]
[1769298023014,4.32516342,127.34,127.31,2.39697646]
[1769298030619,2.11322071,127.34,127.31,2.39697646]
[1769298032217,15.90783723,127.36,127.32,2.11150821]
[1769298032218,10.18630958,127.36,127.32,2.11150821]
[1769298032521,4.24374819,127.36,127.32,2.11150821]
[1769298034121,2.18430301,127.35,127.32,2.11150821]
[1769298038820,4.29752372,127.35,127.32,2.11150821]
[1769298039625,2.11322071,127.34,127.32,2.11150821]
[1769298041315,4.29752372,127.34,127.32,2.11150821]
[1769298041922,2.11322071,127.34,127.32,2.11150821]
[1769298047610,4.29752372,127.33,127.3,2.21285143]
[1769298047806,2.11322071,127.32,127.3,2.21285143]
[1769298048933,4.29752372,127.33,127.3,2.21285143]
[1769298050823,2.11322071,127.33,127.3,2.21285143]
[1769298051928,2.18430301,127.32,127.3,2.21285143]
[1769298052118,4.29752372,127.32,127.3,0.2]
[1769298052833,2.11322071,127.31,127.29,2.21285143]
[1769298053708,2.11322071,127.3,127.29,0.2]
[1769298053912,4.29752372,127.3,127.28,0.2]
[1769298055320,2.18430301,127.29,127.27,0.2]
[1769298055637,2.18430301,127.27,127.25,2.21285143]
[1769298055816,4.29752372,127.27,127.25,0.2]
[1769298056326,7.44131277,127.27,127.25,0.2]
[1769298058338,2.11322071,127.26,127.25,0.2]
[1769298058538,4.29752372,127.25,127.23,0.2]
[1769298058914,2.18430301,127.25,127.23,0.2]
[1769298059115,7.44180701,127.26,127.23,0.2]
[1769298059424,4.29752372,127.26,127.23,0.2]
[1769298059731,7.44180701,127.26,127.23,0.2]
[1769298060235,4.29752372,127.25,127.23,0.2]
[1769298060426,2.18430301,127.22,127.2,23.81285143]
[1769298060631,21.82532623,127.24,127.21,2.01285143]
[1769298060938,2.18430301,127.24,127.21,2.01285143]
[1769298062636,2.18430301,127.24,127.21,4.12607214]
[1769298063036,2.18430301,127.24,127.22,2.08523848]
[1769298068447,2.20213778,127.26,127.22,2.08523848]
[1769298068847,4.31535849,127.26,127.22,2.08523848]
[1769298073151,2.20213778,127.26,127.22,2.08523848]
[1769298081738,4.31535849,127.26,127.22,2.08523848]
[1769298082863,4.31803065,127.26,127.22,2.08523848]
[1769298083845,2.11589287,127.23,127.2,2.08199557]
[1769298084043,4.31455963,127.23,127.2,2.08199557]
[1769298084246,2.19866676,127.22,127.2,2.08199557]
[1769298084759,4.31455963,127.23,127.2,2.08199557]
[1769298087661,2.19866676,127.23,127.2,2.08199557]
[1769298107825,4.05528455,127.24,127.2,2.08199557]
[1769298108417,1.93939168,127.23,127.2,2.08199557]
[1769298108920,1.93939168,127.26,127.21,2.03749878]
[1769298109098,4.05528455,127.25,127.21,2.03749878]
[1769298109418,1.93939168,127.25,127.22,2.03749878]
[1769298110017,4.05528455,127.25,127.22,2.03749878]
[1769298112719,2.11589287,127.25,127.22,2.03749878]
[1769298113529,4.05528455,127.26,127.22,2.03749878]
[1769298116137,1.93939168,127.25,127.22,2.03749878]
[1769298121210,4.05528455,127.25,127.22,2.03749878]
[1769298121417,4.05528455,127.24,127.21,2.03749878]
[1769298126624,1.93939168,127.24,127.21,2.03749878]
[1769298159468,1.97627385,127.25,127.22,2.04359244]
[1769298174100,4.09229941,127.24,127.21,9.90460527]
[1769298174399,1.97627385,127.24,127.21,9.90460527]
[1769298176204,1.97627385,127.24,127.21,2.04359244]
[1769298176503,4.09229941,127.24,127.21,2.04359244]
[1769298182406,1.97627385,127.23,127.21,2.04359244]
[1769298183811,1.97627385,127.23,127.2,9.79591113]
[1769298186715,1.97627385,127.23,127.21,1.93433938]
[1769298208255,1.97627385,127.23,127.2,1.99072745]
[1769298209248,1.97627385,127.23,127.19,56.93096739]
[1769298209249,1.84048979,127.22,127.19,27.2490628]
[1769298209434,1.84048979,127.22,127.19,37.10167925]
[1769298226870,1.84048979,127.22,127.2,1.84987728]
[1769298262416,1.84048979,127.22,127.19,37.0716473]
[1769298268921,1.84048979,127.22,127.2,1.9606955]
[1769298278227,1.84048979,127.22,127.19,66.85848624]
[1769298284232,1.84048979,127.22,127.19,37.07589021]
[1769298289835,30.34860526,127.27,127.15,104.1]
[1769298289836,1.81791912,127.19,127.15,1.96493841]
[1769298290037,1.81791912,127.17,127.15,1.96493841]
[1769298300443,1.81791912,127.17,127.14,1.96493841]
[1769298300943,1.82256668,127.16,127.13,1.96493841]
[1769298301147,1.82256668,127.17,127.15,1.96493841]
[1769298301449,1.82256668,127.17,127.14,9.83020415]
[1769298301851,1.82256668,127.17,127.14,1.96493841]
[1769298303632,2.07491164,127.16,127.14,1.96493841]
[1769298303937,2.11670968,127.17,127.13,10.0254917]
[1769298304442,2.11670968,127.17,127.14,2.15975573]
[1769298304841,2.11670968,127.17,127.13,2.15975573]
[1769298305855,0.06959299,127.16,127.13,2.15975573]
[1769298306350,0.06959299,127.15,127.12,37.56730548]
[1769298306553,0.06959299,127.15,127.13,2.15975573]
[1769298306868,2.2205008,127.16,127.13,2.15975573]
[1769298307953,7.99929181,127.18,127.14,2.11670968]
[1769298308149,0.13759646,127.18,127.15,2.15975573]
[1769298310056,23.59510794,127.2,127.17,2.15975573]
[1769298310243,23.7810542,127.2,127.17,2.15975573]
[1769298312357,10.2077133,127.21,127.17,2.15975573]
[1769298312533,0.22972324,127.21,127.18,2.20257609]
[1769298312734,8.09505278,127.21,127.18,2.20257609]
[1769298312952,0.22972324,127.21,127.18,2.20257609]
[1769298313152,0.24398165,127.2,127.17,2.20257609]
[1769298320449,2.36069133,127.2,127.17,2.20257609]
[1769298324866,2.36161657,127.2,127.17,2.20257609]
[1769298325762,8.27973032,127.21,127.17,4.32021101]
[1769298326061,0.41510126,127.2,127.17,2.20257609]
[1769298333055,2.62595695,127.21,127.17,2.20257609]
[1769298333975,0.51938045,127.2,127.17,2.20257609]
[1769298334471,0.51938045,127.21,127.17,2.20257609]
[1769298335774,2.65875263,127.2,127.17,2.20257609]
[1769298337960,0.54111771,127.2,127.17,2.20257609]
[1769298342574,2.72103063,127.19,127.16,2.29187819]
[1769298362187,0.60339571,127.19,127.16,2.29187819]
[1769298362487,0.78240224,127.2,127.16,2.29187819]
[1769298362690,0.78240224,127.2,127.17,2.53375831]
[1769298363068,2.90003716,127.2,127.17,2.53375831]
[1769298367893,0.83590275,127.21,127.17,2.53375831]
[1769298368072,2.95353767,127.21,127.17,2.53375831]
[1769298368272,2.11763492,127.21,127.18,2.53375831]
[1769298369494,2.96083351,127.21,127.18,2.53375831]
[1769298371179,2.11763492,127.2,127.18,2.53375831]
[1769298385714,0.9610852,127.18,127.15,2.58019086]
[1769298386024,2.11763492,127.17,127.15,2.58019086]
[1769298387015,3.08586371,127.17,127.15,2.58019086]
[1769298388114,2.11892051,127.17,127.15,2.58019086]
[1769298399005,0.97273391,127.18,127.15,2.58019086]
[1769298399205,3.09165442,127.18,127.15,2.58019086]
[1769298404628,3.18522109,127.19,127.15,2.58019086]
[1769298404817,3.18522109,127.19,127.16,2.65442087]
[1769298405911,2.11892051,127.18,127.16,2.65442087]
[1769298431546,3.30045762,127.18,127.16,2.65442087]
[1769298433550,2.11892051,127.18,127.16,2.65442087]
[1769298442657,2.11892051,127.19,127.16,2.65442087]
[1769298443539,3.33501212,127.19,127.16,2.65442087]
[1769298443848,2.11892051,127.19,127.16,2.65442087]
[1769298446859,2.11813011,127.19,127.16,2.65442087]
[1769298456762,3.37230255,127.19,127.16,2.65442087]
[1769298479287,2.11813011,127.18,127.16,2.65442087]
[1769298482002,3.37230255,127.19,127.16,2.65442087]
[1769298492316,2.11813011,127.2,127.16,2.65442087]
[1769298492524,7.86126618,127.21,127.17,2.66595022]
[1769298492525,3.18985508,127.21,127.17,2.66595022]
[1769298496822,2.11813011,127.2,127.17,2.66595022]
[1769298497521,3.18985508,127.21,127.17,2.66595022]
[1769298501026,1.07172497,127.21,127.17,2.66595022]
[1769298501206,3.18985508,127.21,127.17,2.66595022]
[1769298506122,3.08940864,127.22,127.18,2.66595022]
[1769298508943,3.08861627,127.22,127.18,2.66595022]
[1769298509536,2.11733774,127.21,127.18,2.66595022]
[1769298511947,3.08861627,127.22,127.18,2.66595022]
[1769298513648,2.11733774,127.21,127.18,2.66595022]
[1769298522846,0.97127853,127.22,127.18,2.66595022]
[1769298523036,2.11733774,127.21,127.18,2.66595022]
[1769298528669,3.08861627,127.22,127.18,2.66595022]
[1769298529475,2.11733774,127.22,127.18,2.66595022]
[1769298530169,2.94507665,127.22,127.18,2.66595022]
[1769298538269,0.60212151,127.24,127.19,2.56543897]
[1769298538475,0.60212151,127.24,127.2,2.56543897]
[1769298538667,2.71945925,127.24,127.2,2.56543897]
[1769298539074,2.11733774,127.23,127.2,2.56543897]
[1769298544511,2.71945925,127.24,127.21,2.28528518]
[1769298555528,0.60212151,127.24,127.21,2.28528518]
[1769298556216,2.71945925,127.24,127.21,2.28528518]
[1769298559020,0.05837493,127.25,127.21,2.28528518]
[1769298559315,2.17571267,127.25,127.21,2.28528518]
[1769298561702,2.11733774,127.25,127.21,2.28528518]
[1769298563511,2.11733774,127.26,127.22,2.15975573]
[1769298567215,2.11733774,127.25,127.22,2.15975573]
[1769298568914,2.11610895,127.25,127.22,2.15975573]
[1769298574101,2.11610895,127.26,127.22,2.15975573]
[1769298580738,2.11610895,127.25,127.22,2.15975573]
[1769298587847,2.11610895,127.24,127.22,2.15975573]
[1769298590228,2.11610895,127.25,127.22,2.15975573]
[1769298603862,2.11610895,127.24,127.22,2.15975573]
[1769298605463,2.11610895,127.23,127.2,2.15975573]
[1769298608547,2.11610895,127.21,127.18,30.00322176]
[1769298608865,2.11610895,127.21,127.19,2.15975573]
[1769298610066,2.11610895,127.21,127.18,32.16297749]
[1769298610967,2.11610895,127.21,127.19,2.15975573]
[1769298611165,2.11610895,127.21,127.16,9.97989303]
[1769298611958,3.49309891,127.21,127.16,9.97989303]
[1769298613180,3.49309891,127.21,127.17,1.69470978]
[1769298621190,3.49309891,127.21,127.17,7.86346965]
[1769298621363,3.49309891,127.21,127.18,1.69470978]
[1769298628988,1.37698996,127.21,127.18,1.69470978]
[1769298632789,3.49429053,127.21,127.18,1.69470978]
[1769298634490,1.37698996,127.21,127.18,1.69470978]
[1769298638099,3.49429053,127.21,127.18,1.69470978]
[1769298648629,1.19473156,127.2,127.18,1.69470978]
[1769298650313,1.19473156,127.2,127.15,37.53119488]
[1769298650507,1.19473156,127.2,127.16,1.65470414]
[1769298650719,3.31203213,127.2,127.16,1.65470414]
[1769298655545,3.28992123,127.19,127.16,1.65470414]
[1769298657247,1.17262066,127.19,127.16,1.65470414]
[1769298681473,3.28992123,127.19,127.16,1.65470414]
[1769298683468,1.17262066,127.19,127.16,1.65470414]
[1769298693589,3.29056145,127.19,127.16,1.65470414]
[1769298694087,1.17262066,127.19,127.16,1.65470414]
[1769298710788,3.14009134,127.2,127.16,1.65470414]
[1769298710993,1.02215055,127.2,127.16,1.65470414]
[1769298722314,3.14009134,127.2,127.16,1.65470414]
[1769298722497,1.00175391,127.18,127.15,29.04224318]
[1769298722699,3.1196947,127.18,127.15,29.04224318]
[1769298726918,0.99254596,127.17,127.14,1.52343297]
[1769298731216,0.98674163,127.16,127.13,13.22212151]
[1769298731403,3.10468242,127.15,127.12,1.52343297]
[1769298731721,0.98674163,127.15,127.12,1.52343297]
[1769298735512,0.06145844,127.16,127.14,2.11794079]
[1769298735720,1.56982385,127.18,127.15,2.11794079]
[1769298735902,1.56982385,127.18,127.14,2.11794079]
[1769298736100,1.56982385,127.18,127.14,21.77101772]
[1769298736624,1.56982385,127.18,127.14,21.79256381]
[1769298740002,1.56982385,127.18,127.14,21.82399057]
[1769298741626,1.56982385,127.18,127.15,0.06058738]
[1769298746034,1.56982385,127.18,127.15,2.17852817]
[1769298751743,1.56982385,127.2,127.17,0.09612936]
[1769298751920,1.56982385,127.2,127.17,2.11794079]
[1769298752836,1.56982385,127.2,127.17,2.22069898]
[1769298753039,1.56982385,127.2,127.17,2.22006782]
[1769298758426,1.56982385,127.2,127.16,12.21381024]
[1769298758632,1.56982385,127.19,127.16,12.21381024]
[1769298763156,1.56982385,127.19,127.16,2.23598505]
[1769298770968,1.56982385,127.19,127.16,2.11730963]
[1769298771471,1.56982385,127.19,127.16,2.27331299]
[1769298779079,1.56982385,127.19,127.16,0.15600336]
[1769298788085,1.56982385,127.19,127.15,9.9817639]
[1769298788592,1.56982385,127.19,127.15,10.18101578]
[1769298788766,1.56982385,127.19,127.16,0.20140097]
[1769298789088,1.56982385,127.19,127.15,0.20140097]
[1769298789466,1.56982385,127.19,127.14,10.1835782]
[1769298789671,2.11730963,127.19,127.14,10.1835782]
[1769298789963,1.56982385,127.18,127.14,10.1835782]
[1769298792791,1.56982385,127.18,127.15,0.21178181]
[1769298793300,1.56982385,127.21,127.16,2.32909144]
[1769298793584,1.56982385,127.19,127.15,2.11730963]
[1769298799901,1.56982385,127.19,127.15,2.34265318]
[1769298801094,1.56982385,127.19,127.16,2.34450258]
[1769298801298,1.56982385,127.19,127.17,2.11730963]
[1769298808503,1.56982385,127.2,127.17,2.35686712]
[1769298808804,1.56982385,127.2,127.17,2.35855327]
[1769298809094,1.56982385,127.2,127.17,2.11730963]
[1769298809277,1.56982385,127.2,127.17,2.35855327]
[1769298810610,1.56982385,127.2,127.17,2.11730963]
[1769298812910,1.56982385,127.2,127.16,10.22438836]
[1769298814910,1.56982385,127.2,127.17,0.25251667]
[1769298815208,1.57086168,127.21,127.18,2.36990023]
[1769298827326,1.57086168,127.21,127.18,10.23268623]
[1769298827505,1.57086168,127.21,127.19,2.11738356]
[1769298834531,1.57086168,127.23,127.19,2.39627728]
[1769298834713,1.57086168,127.23,127.19,10.2584923]
[1769298840940,1.57086168,127.23,127.19,2.39627728]
[1769298847042,1.57086168,127.23,127.19,2.11738356]
[1769298847346,1.57086168,127.23,127.18,10.27487534]
[1769298847347,1.63239167,127.22,127.18,10.27487534]
[1769298847637,1.63239167,127.22,127.18,2.11738356]
[1769298847844,1.63239167,127.21,127.17,10.27657883]
[1769298848546,1.63239167,127.21,127.17,2.41337522]
[1769298852860,2.11738356,127.21,127.17,2.11738356]
[1769298853027,1.60425255,127.2,127.17,2.11738356]
[1769298854559,1.60425255,127.2,127.16,2.42039521]
[1769298855755,1.60425255,127.2,127.17,0.30491528]
[1769298855972,1.60425255,127.22,127.19,2.11738356]
[1769298859160,1.60425255,127.22,127.18,2.42229884]
[1769298861054,1.60425255,127.22,127.19,2.42686987]
[1769298861262,1.60425255,127.22,127.2,2.11738356]
[1769298861839,1.60425255,127.22,127.19,2.42686987]
[1769298872878,1.60425255,127.22,127.19,2.42620669]
[1769298884379,1.70869433,127.23,127.2,0.32810013]
[1769298884881,1.70869433,127.23,127.2,2.11672038]
[1769298885675,1.70869433,127.23,127.19,10.30768976]
[1769298885873,1.70869433,127.23,127.2,10.3077228]
[1769298886060,1.70869433,127.23,127.21,2.11672038]
[1769298886260,1.70869433,127.23,127.21,2.44615112]
[1769298886885,1.70869433,127.23,127.21,0.32943074]
[1769298891172,1.70869433,127.23,127.19,9.97864633]
[1769298891472,1.70869433,127.23,127.2,0.33262582]
[1769298894192,1.70869433,127.22,127.18,8.19722962]
[1769298894373,1.70869433,127.22,127.18,10.31395]
[1769298899069,1.70869433,127.22,127.19,2.11672038]
[1769298900096,1.70869433,127.22,127.18,8.19722962]
[1769298900272,1.70869433,127.22,127.19,2.11672038]
[1769298902101,1.70869433,127.22,127.18,10.31395]
[1769298905318,1.70869433,127.22,127.19,2.11672038]
[1769298915625,1.70869433,127.22,127.18,2.11672038]
[1769298916331,1.70869433,127.22,127.18,2.4637441]
[1769298926333,1.70869433,127.22,127.18,0.34702372]
[1769298926532,1.70869433,127.22,127.18,2.4637441]
[1769298929440,1.67659496,127.21,127.18,2.4637441]
[1769298933337,1.67659496,127.21,127.18,2.11672038]
[1769298933535,1.67659496,127.21,127.17,10.33440705]
[1769298934948,1.67659496,127.21,127.17,10.33481524]
[1769298940660,1.67659496,127.21,127.18,2.11712857]
[1769298944968,1.67659496,127.21,127.17,10.33481524]
[1769298945169,1.62136142,127.2,127.16,2.47567301]
[1769298947269,1.62136142,127.2,127.16,0.35854444]
[1769298947472,1.62136142,127.2,127.16,2.47567301]
[1769298952677,1.62136142,127.2,127.17,2.11712857]
[1769298958386,1.62136142,127.2,127.16,2.47567301]
[1769298959480,1.62136142,127.2,127.17,2.11712857]
[1769298971095,1.62136142,127.2,127.16,2.47567301]
[1769298972693,1.62136142,127.2,127.17,2.11712857]
[1769298975791,1.62136142,127.2,127.16,2.47567301]
[1769298981897,1.62136142,127.2,127.17,2.11712857]
[1769298982396,1.62136142,127.2,127.16,0.35854444]
[1769298982703,1.62136142,127.2,127.17,2.11712857]
[1769298987401,1.62136142,127.2,127.16,2.47567301]
[1769298994899,1.62136142,127.2,127.16,2.47595058]
[1769299010500,1.62136142,127.2,127.16,0.35854444]
[1769299020619,1.62136142,127.2,127.16,2.47595058]
[1769299033936,1.62136142,127.2,127.17,2.11740614]
[1769299034437,1.62136142,127.2,127.16,2.47595058]
[1769299037939,1.62136142,127.2,127.16,10.34001649]
[1769299049246,1.62136142,127.2,127.17,2.11740614]
[1769299053548,1.62136142,127.2,127.16,2.47595058]
[1769299054864,1.62136142,127.2,127.16,2.47608375]
[1769299060875,1.62136142,127.2,127.16,2.11753931]
[1769299061567,1.62136142,127.2,127.16,2.49710267]
[1769299064373,1.62136142,127.2,127.15,36.34748718]
[1769299064545,1.62136142,127.2,127.15,38.46502649]
[1769299064949,1.75049768,127.19,127.15,38.46502649]
[1769299065868,1.75049768,127.19,127.16,2.11753931]
[1769299067475,1.75049768,127.19,127.16,2.49755769]
[1769299071584,1.75049768,127.19,127.16,2.11753931]
[1769299072681,1.75049768,127.19,127.15,38.46553634]
[1769299077081,1.75049768,127.19,127.16,2.49824934]
[1769299082488,1.75049768,127.19,127.16,2.11753931]
[1769299084595,1.75049768,127.19,127.16,2.49874792]
[1769299091394,1.67218266,127.2,127.17,0.38160863]
[1769299091893,1.67218266,127.2,127.16,2.49925641]
[1769299096097,1.67218266,127.2,127.17,0.38192667]
[1769299096278,1.67218266,127.2,127.17,2.49946598]
[1769299097596,1.67218266,127.2,127.17,0.38192667]
[1769299105785,1.67218266,127.2,127.16,2.49990357]
[1769299107704,1.67218266,127.2,127.16,0.38236426]
[1769299107905,1.67218266,127.2,127.16,2.49990357]
[1769299112312,1.67218266,127.2,127.17,2.50021381]
[1769299112697,1.67218266,127.2,127.17,0.3826745]
[1769299114717,1.67218266,127.2,127.16,10.36440542]
[1769299116916,1.67218266,127.2,127.16,10.36420798]
[1769299119515,1.67218266,127.2,127.17,2.11734187]
[1769299124521,1.67218266,127.2,127.14,29.6806931]
[1769299124718,3.74905265,127.17,127.14,0.38318815]
[1769299124947,1.63171078,127.17,127.13,2.50056643]